bitfinex/quotes_SOLUSD_20250108
["timestamp","ask_amount","ask_price","bid_price","bid_amount"]
[1736326313825,20.0,197.78,197.77,5.0]
[1736326313998,20.0,197.78,197.76,5.0]
[1736326314201,20.0,197.78,197.77,5.0]
[1736326315824,20.0,197.78,197.76,5.0]
[1736326317804,20.0,197.78,197.77,5.0]
[1736326318906,15.1599,197.89,197.78,5.0]
[1736326319213,20.0,197.86,197.79,5.0]
[1736326320023,20.0,197.82,197.79,5.0]
[1736326323134,5.0528,197.91,197.83,5.0]
[1736326323335,20.0,197.88,197.83,5.0]
[1736326323535,5.0528,197.91,197.83,5.0]
[1736326323834,5.0528,197.91,197.82,10.0]
[1736326324024,20.0,197.88,197.83,5.0]
[1736326324618,20.0,197.92,197.84,5.0]
[1736326324815,15.1555,197.95,197.85,5.0]
[1736326325116,23.776884,197.94,197.85,5.0]
[1736326326021,20.0,197.9,197.85,5.0]
[1736326327728,20.0,197.9,197.87,5.0]
[1736326327925,20.0,197.9,197.87,10.0]
[1736326328230,5.0522,197.93,197.87,10.0]
[1736326328431,5.0522,197.93,197.88,5.0]
[1736326328831,20.0,197.9,197.88,5.0]
[1736326329143,5.0522,197.93,197.88,5.0]
[1736326329842,20.0,197.9,197.88,5.0]
[1736326330737,20.0,197.9,197.86,10.0]
[1736326331334,20.0,197.9,197.87,5.0]
[1736326331646,20.0,197.9,197.86,5.0]
[1736326331832,20.0,197.9,197.86,10.0]
[1736326332132,20.0,197.9,197.87,5.0]
[1736326332447,20.0,197.9,197.86,10.0]
[1736326332651,20.0,197.9,197.87,5.0]
[1736326333233,20.0,197.9,197.86,10.0]
[1736326333436,20.0,197.9,197.88,5.0]
[1736326333750,20.0,197.9,197.86,10.0]
[1736326334052,20.0,197.91,197.82,5.0]
[1736326334252,20.0,197.91,197.81,10.0]
[1736326334632,20.0,197.91,197.82,5.0]
[1736326334856,20.0,197.91,197.8,17.747]
[1736326335147,20.0,197.87,197.82,5.0]
[1736326336053,25.0538,197.87,197.82,5.0]
[1736326337054,25.0538,197.87,197.81,5.0]
[1736326337347,25.0538,197.87,197.8,11.6596]
[1736326337553,25.0538,197.87,197.8,6.6596]
[1736326338953,20.0,197.83,197.8,1.6596]
[1736326339344,20.0,197.83,197.82,5.0]
[1736326339543,5.0538,197.87,197.82,5.0]
[1736326339855,20.0,197.84,197.83,5.0]
[1736326340553,20.0,197.86,197.83,5.0]
[1736326341052,20.0,197.86,197.81,10.0]
[1736326341259,20.0,197.86,197.83,5.0]
[1736326342864,5.0539,197.87,197.83,5.0]
[1736326344455,23.776884,197.9,197.83,5.0]
[1736326344662,20.0,197.87,197.83,5.0]
[1736326345457,20.0,197.87,197.83,10.0]
[1736326346355,20.0,197.87,197.84,10.0]
[1736326346957,5.053,197.9,197.87,5.0]
[1736326347165,2.28089747,197.91,197.87,10.0]
[1736326347366,5.0522,197.93,197.88,5.0]
[1736326347544,20.0,197.9,197.88,5.0]
[1736326348063,20.0,197.9,197.88,10.0]
[1736326348281,5.0512,197.97,197.88,10.0]
[1736326348442,23.776884,197.96,197.88,10.0]
[1736326348939,23.776884,197.96,197.88,5.0]
[1736326349140,5.0512,197.97,197.89,10.0]
[1736326350466,20.0,197.94,197.89,10.0]
[1736326350774,20.0,197.92,197.89,10.0]
[1736326354771,22.33107404,197.92,197.89,10.0]
[1736326356171,2.33107404,197.92,197.89,5.0]
[1736326356358,20.0,197.9,197.87,11.5014]
[1736326356556,20.0,197.9,197.87,1.5014]
[1736326356760,20.0,197.9,197.87,11.5014]
[1736326357176,20.0,197.9,197.87,1.5014]
[1736326359083,20.0,197.9,197.87,6.5014]
[1736326359456,20.0,197.9,197.87,1.5014]
[1736326359769,20.0,197.9,197.87,6.5014]
[1736326360576,20.0,197.9,197.87,1.5014]
[1736326361772,20.0,197.9,197.88,5.0]
[1736326362170,20.0,197.9,197.87,11.5014]
[1736326362371,20.0,197.9,197.88,5.0]
[1736326362890,20.0,197.9,197.89,5.0]
[1736326363370,20.0,197.9,197.88,5.0]
[1736326363581,20.0,197.9,197.89,5.0]
[1736326363781,22.36878818,197.9,197.89,5.0]
[1736326364292,22.36878818,197.9,197.88,5.0]
[1736326364981,22.36878818,197.9,197.89,5.0]
[1736326365554,22.36878818,197.9,197.88,5.0]
[1736326366183,22.36878818,197.9,197.89,5.0]
[1736326366883,22.36878818,197.9,197.88,5.0]
[1736326367984,22.36878818,197.9,197.89,5.0]
[1736326368785,22.36878818,197.9,197.88,5.0]
[1736326368988,22.36878818,197.9,197.89,5.0]
[1736326369482,22.36878818,197.9,197.88,5.0]
[1736326369788,20.0,197.9,197.89,5.0]
[1736326372386,20.0,197.9,197.88,5.0]
[1736326372983,20.0,197.9,197.89,5.0]
[1736326373487,20.0,197.9,197.88,5.0]
[1736326373877,20.0,197.9,197.89,5.0]
[1736326376589,2.33375324,197.92,197.89,5.0]
[1736326376789,5.27279648,197.98,197.91,5.0]
[1736326376968,20.0,197.93,197.91,5.0]
[1736326379888,20.0,197.94,197.91,5.0]
[1736326380088,20.0,197.94,197.92,5.0]
[1736326382201,20.0,197.94,197.91,5.0]
[1736326396090,20.0,197.96,197.88,5.0]
[1736326396405,20.0,197.94,197.88,5.0]
[1736326396808,20.0,197.94,197.86,5.0]
[1736326397181,20.0,197.9,197.86,5.0]
[1736326397586,20.0,197.9,197.87,5.0]
[1736326398609,20.0,197.9,197.86,5.0]
[1736326403919,22.18301127,197.9,197.86,5.0]
[1736326404392,20.0,197.88,197.86,5.0]
[1736326404914,20.0,197.88,197.85,5.0]
[1736326405713,20.0,197.88,197.83,5.0]
[1736326405882,20.0,197.88,197.85,5.0]
[1736326408314,20.0,197.88,197.83,5.0]
[1736326408715,20.0,197.88,197.84,5.0]
[1736326411516,20.0,197.88,197.86,5.0]
[1736326412302,20.0,197.88,197.8,10.57739097]
[1736326412303,20.0,197.88,197.85,5.0]
[1736326412523,20.0,197.88,197.86,5.0]
[1736326414114,20.0,197.88,197.84,5.0]
[1736326414702,20.0,197.88,197.85,5.0]
[1736326416920,20.0,197.88,197.84,5.0]
[1736326417103,20.0,197.88,197.83,5.0]
[1736326417301,20.0,197.88,197.84,5.0]
[1736326417502,20.0,197.88,197.83,5.0]
[1736326419122,20.0,197.86,197.83,5.0]
[1736326422724,20.0,197.86,197.82,5.0]
[1736326422922,20.0,197.86,197.83,5.0]
[1736326423123,20.0,197.86,197.82,5.0]
[1736326423312,20.0,197.86,197.83,5.0]
[1736326426332,20.0,197.86,197.82,5.0]
[1736326426511,20.0,197.86,197.81,5.0]
[1736326426707,20.0,197.86,197.82,5.0]
[1736326428418,20.0,197.86,197.81,5.0]
[1736326428619,20.0,197.86,197.82,5.0]
[1736326428823,20.0,197.86,197.81,5.0]
[1736326429451,20.0,197.86,197.8,5.0]
[1736326430610,20.0,197.87,197.8,5.0]
[1736326431531,20.0,197.87,197.81,5.0]
[1736326431737,20.0,197.88,197.81,5.0]
[1736326432839,25.0538,197.88,197.81,5.0]
[1736326434653,25.0538,197.88,197.8,5.0]
[1736326435144,25.0538,197.88,197.81,5.0]
[1736326435442,25.0538,197.88,197.8,5.0]
[1736326435628,25.0538,197.88,197.81,5.0]
[1736326435938,20.0,197.87,197.79,5.0]
[1736326436144,20.0,197.86,197.79,5.0]
[1736326438038,25.0543,197.86,197.78,5.0]
[1736326438243,20.0,197.82,197.76,5.0]
[1736326438422,20.0,197.82,197.77,5.0]
[1736326439326,20.0,197.81,197.77,5.0]
[1736326445026,22.18156724,197.81,197.77,5.0]
[1736326446135,21.68062337,197.81,197.77,5.0]
[1736326447150,21.68062337,197.81,197.76,5.0]
[1736326451158,21.68062337,197.81,197.75,5.0]
[1736326451456,21.68062337,197.81,197.76,5.0]
[1736326455064,19.49905613,197.81,197.77,5.0]
[1736326456266,19.49905613,197.81,197.76,5.0]
[1736326456465,19.49905613,197.81,197.74,17.99471778]
[1736326456466,19.49905613,197.81,197.77,5.0]
[1736326456966,25.0553,197.82,197.75,5.0]
[1736326457346,25.0553,197.82,197.76,5.0]
[1736326460466,20.0,197.84,197.8,5.0]
[1736326460672,7.24106775,197.85,197.8,5.0]
[1736326460873,20.0,197.82,197.8,5.0]
[1736326461069,20.0,197.82,197.81,5.0]
[1736326461269,7.2174039,197.88,197.82,5.0]
[1736326461454,5.0535,197.88,197.84,5.0]
[1736326461649,20.0,197.85,197.84,5.0]
[1736326461869,5.0535,197.88,197.84,5.0]
[1736326462456,20.0,197.88,197.84,5.0]
[1736326462667,23.776884,197.91,197.84,5.0]
[1736326462868,5.0522,197.93,197.84,5.0]
[1736326463062,23.776884,197.91,197.84,5.0]
[1736326463451,20.0,197.88,197.84,5.0]
[1736326463653,20.0,197.87,197.84,5.0]
[1736326468488,25.0537,197.88,197.84,5.0]
[1736326470562,25.0537,197.88,197.82,5.0]
[1736326470761,23.776884,197.87,197.79,5.0]
[1736326470961,23.776884,197.87,197.78,5.0]
[1736326471262,23.776884,197.87,197.77,6.5635]
[1736326472081,20.0,197.83,197.77,1.5635]
[1736326473165,20.0,197.79,197.77,1.5635]
[1736326474266,20.0,197.79,197.77,6.5635]
[1736326474779,20.0,197.79,197.77,1.5635]
[1736326474962,20.0,197.79,197.77,6.5635]
[1736326476865,20.0,197.79,197.77,1.5635]
[1736326477975,20.0,197.79,197.77,6.5635]
[1736326478479,20.0,197.79,197.77,1.5635]
[1736326478681,20.0,197.79,197.77,6.5635]
[1736326478894,20.0,197.79,197.77,1.5635]
[1736326479098,20.0,197.79,197.77,6.5635]
[1736326479304,20.0,197.79,197.77,1.5635]
[1736326479465,20.0,197.79,197.77,6.5635]
[1736326480262,5.0559,197.79,197.74,5.0]
[1736326480683,5.0559,197.79,197.73,6.6529]
[1736326481883,5.0559,197.79,197.75,5.0]
[1736326482086,5.0559,197.79,197.74,5.0]
[1736326485301,20.0,197.76,197.74,5.0]
[1736326486094,20.0,197.76,197.73,6.6529]
[1736326486291,20.0,197.76,197.74,5.0]
[1736326486498,20.0,197.76,197.75,5.0]
[1736326502597,25.0551,197.82,197.75,5.0]
[1736326509720,25.0551,197.82,197.8,5.0]
[1736326509914,2.07801729,197.84,197.81,5.0]
[1736326510111,5.0543,197.85,197.82,5.0]
[1736326510297,5.0536,197.88,197.83,5.0]
[1736326510994,5.0527,197.92,197.86,5.0]
[1736326511620,20.0,197.89,197.86,5.0]
[1736326511800,5.0527,197.92,197.86,5.0]
[1736326512301,20.0,197.89,197.87,5.0]
[1736326512515,5.0527,197.92,197.87,5.0]
[1736326513016,20.0,197.89,197.88,5.0]
[1736326513222,5.0527,197.92,197.88,5.0]
[1736326514330,20.0,197.89,197.88,5.0]
[1736326517518,20.0,197.89,197.87,5.0]
[1736326517699,20.0,197.89,197.86,5.0]
[1736326518220,20.0,197.9,197.85,5.0]
[1736326518406,22.14526156,197.9,197.83,5.0]
[1736326519502,5.0533,197.89,197.85,5.0]
[1736326523038,5.0533,197.89,197.84,5.0]
[1736326523245,5.0533,197.89,197.83,5.0]
[1736326523424,5.0533,197.89,197.84,5.0]
[1736326524734,20.0,197.86,197.84,5.0]
[1736326525626,20.0,197.86,197.85,5.0]
[1736326536727,22.11365141,197.86,197.85,5.0]
[1736326541127,20.0,197.84,197.83,5.0]
[1736326541426,20.0,197.84,197.82,5.0]
[1736326541631,20.0,197.84,197.81,5.0]
[1736326543922,20.0,197.84,197.83,5.0]
[1736326544743,20.0,197.84,197.82,5.0]
[1736326544931,20.0,197.84,197.83,5.0]
[1736326546052,20.0,197.84,197.82,5.0]
[1736326547051,20.0,197.84,197.83,5.0]
[1736326550532,20.0,197.84,197.82,5.0]
[1736326551858,20.0,197.84,197.83,5.0]
[1736326552251,20.0,197.84,197.82,5.0]
[1736326553233,20.0,197.84,197.83,5.0]
[1736326554553,20.0,197.84,197.82,5.0]
[1736326555558,20.0,197.84,197.83,5.0]
[1736326558239,20.0,197.84,197.82,5.0]
[1736326558446,20.0,197.84,197.83,5.0]
[1736326559843,5.053,197.9,197.86,5.0]
[1736326560660,20.0,197.87,197.86,5.0]
[1736326561858,6.5863,197.93,197.89,5.0]
[1736326562061,16.56197015,197.92,197.83,5.0]
[1736326562262,16.56197015,197.92,197.81,5.0]
[1736326562263,20.0,197.88,197.81,5.0]
[1736326562555,20.0,197.88,197.83,5.0]
[1736326563141,5.0538,197.87,197.83,5.0]
[1736326566965,7.13215038,197.87,197.83,5.0]
[1736326567467,7.13215038,197.87,197.82,5.0]
[1736326567853,7.13215038,197.87,197.83,5.0]
[1736326568054,7.13215038,197.87,197.82,5.0]
[1736326568256,7.13215038,197.87,197.81,5.0]
[1736326569350,7.13215038,197.87,197.82,5.0]
[1736326570759,20.0,197.85,197.84,5.0]
[1736326570968,7.94742037,197.93,197.89,5.0]
[1736326571142,7.94742037,197.94,197.89,5.0]
[1736326571344,10.00178337,197.94,197.89,5.0]
[1736326571770,20.0,197.91,197.89,5.0]
[1736326572571,27.106463,197.94,197.89,5.0]
[1736326572747,25.0521,197.94,197.89,5.0]
[1736326573154,25.0521,197.94,197.9,5.0]
[1736326573966,10.1025,197.97,197.9,5.0]
[1736326574145,15.1537,197.97,197.9,5.0]
[1736326574348,21.54666916,197.97,197.9,5.0]
[1736326574574,20.0,197.94,197.9,5.0]
[1736326575181,25.0522,197.94,197.9,5.0]
[1736326583269,8.47183634,197.97,197.94,5.0]
[1736326583471,6.39296916,197.97,197.94,5.0]
[1736326583889,5.0511,197.98,197.94,5.0]
[1736326584094,20.0,197.95,197.94,5.0]
[1736326584401,5.0511,197.98,197.94,5.0]
[1736326585297,5.0511,197.98,197.96,5.0]
[1736326590697,5.0511,197.98,197.97,5.0]
[1736326595098,20.0,197.95,197.94,5.0]
[1736326595302,20.0,197.95,197.93,5.0]
[1736326595501,20.0,197.95,197.91,5.0]
[1736326596712,20.0,197.98,197.93,5.0]
[1736326596915,5.0512,197.97,197.93,5.0]
[1736326597095,5.0512,197.97,197.92,5.0]
[1736326597596,20.0,197.94,197.93,5.0]
[1736326597794,20.0,197.94,197.91,5.0]
[1736326598100,20.0,197.94,197.9,5.0]
[1736326598418,20.0,197.94,197.89,5.0]
[1736326598616,20.0,197.94,197.9,5.0]
[1736326598795,20.0,197.94,197.89,5.0]
[1736326598993,20.0,197.9,197.88,5.0]
[1736326599197,20.0,197.9,197.87,5.0]
[1736326599897,25.0531,197.9,197.86,5.0]
[1736326600116,25.0531,197.9,197.87,5.0]
[1736326600508,25.0531,197.9,197.86,5.0]
[1736326600715,25.0531,197.9,197.87,5.0]
[1736326601345,25.0531,197.9,197.86,5.0]
[1736326601510,25.0531,197.9,197.87,5.0]
[1736326601716,25.0531,197.9,197.86,5.0]
[1736326602016,25.0531,197.9,197.88,5.0]
[1736326602212,25.0531,197.9,197.87,5.0]
[1736326602412,25.0531,197.9,197.88,5.0]
[1736326602639,25.0531,197.9,197.87,5.0]
[1736326603249,25.0531,197.9,197.88,5.0]
[1736326606533,25.0531,197.9,197.78,9.81921778]
[1736326606715,25.0531,197.9,197.77,0.75814495]
[1736326606923,25.0531,197.9,197.77,10.57736273]
[1736326607116,25.0531,197.9,197.77,0.75814495]
[1736326607352,25.0531,197.9,197.75,0.75818542]
[1736326607550,25.0531,197.9,197.74,0.758274]
[1736326607856,25.0531,197.9,197.74,5.758274]
[1736326608151,20.0,197.86,197.74,0.758274]
[1736326608531,25.0541,197.86,197.74,0.758274]
[1736326608729,25.0541,197.86,197.74,5.758274]
[1736326609143,25.0541,197.86,197.74,15.57749178]
[1736326609739,25.0541,197.86,197.74,10.57749178]
[1736326611247,25.0541,197.86,197.74,0.758274]
[1736326611433,25.0541,197.86,197.73,10.57754142]
[1736326612845,25.0541,197.86,197.74,9.81921778]
[1736326614031,1.6357,197.85,197.74,9.81921778]
[1736326614238,1.6357,197.85,197.78,9.81921778]
[1736326616457,1.6357,197.85,197.76,9.81921778]
[1736326616754,1.6357,197.85,197.77,9.81921778]
[1736326617739,21.6357,197.85,197.77,9.81921778]
[1736326619481,1.6357,197.85,197.77,9.81921778]
[1736326619648,1.6357,197.85,197.8,9.81921778]
[1736326619839,1.6357,197.85,197.8,10.57728984]
[1736326620242,6.6553,197.89,197.82,9.81921778]
[1736326620450,6.6553,197.89,197.8,10.57728984]
[1736326620649,6.6553,197.89,197.81,9.81921778]
[1736326620867,6.6553,197.89,197.82,9.81921778]
[1736326621053,6.6553,197.89,197.82,10.57723834]
[1736326622746,6.6553,197.89,197.81,9.81921778]
[1736326623572,6.6553,197.89,197.82,10.57726257]
[1736326624147,1.5951,197.9,197.83,9.81921778]
[1736326624668,1.5951,197.9,197.84,0.75795847]
[1736326625243,6.0569,197.94,197.84,0.75795847]
[1736326627376,6.0569,197.94,197.84,10.57717625]
[1736326629110,6.0569,197.94,197.84,0.75795847]
[1736326629709,6.0569,197.94,197.83,0.75793495]
[1736326629995,5.0522,197.93,197.81,10.57715273]
[1736326630287,5.0522,197.93,197.81,0.75793495]
[1736326630880,20.0,197.9,197.81,0.75793495]
[1736326632672,25.053,197.91,197.79,9.81921778]
[1736326634999,25.053,197.91,197.8,5.0]
[1736326635191,25.053,197.91,197.79,14.81921778]
[1736326635797,25.053,197.91,197.8,9.81921778]
[1736326635987,25.053,197.91,197.78,5.75808593]
[1736326635988,25.053,197.91,197.79,9.81921778]
[1736326637700,6.61,197.9,197.79,9.81921778]
[1736326639308,6.61,197.9,197.79,14.81921778]
[1736326639682,6.61,197.9,197.79,9.81921778]
[1736326639997,6.61,197.9,197.8,9.81921778]
[1736326646803,6.61,197.9,197.81,9.81921778]
[1736326647116,6.61,197.9,197.82,9.81921778]
[1736326649107,6.61,197.9,197.81,9.81921778]
[1736326649404,6.61,197.9,197.82,9.81921778]
[1736326649603,6.61,197.9,197.81,9.81921778]
[1736326652395,6.61,197.9,197.8,10.57727167]
[1736326652595,6.61,197.9,197.79,5.0]
[1736326652799,5.0533,197.89,197.78,14.81921778]
[1736326652997,5.0533,197.89,197.78,9.81921778]
[1736326655438,20.0,197.86,197.76,0.75816737]
[1736326657622,20.0,197.86,197.77,9.81921778]
[1736326663810,20.0,197.86,197.76,0.75816737]
[1736326664025,6.5776,197.85,197.74,9.81921778]
[1736326664212,1.6596,197.84,197.74,9.81921778]
[1736326666801,1.6596,197.84,197.75,9.81921778]
[1736326667023,1.6596,197.84,197.73,0.75820117]
[1736326667221,1.6596,197.84,197.75,9.81921778]
[1736326668021,1.6596,197.84,197.74,9.81921778]
[1736326668229,6.7143,197.84,197.73,9.81921778]
[1736326668725,6.7143,197.84,197.71,0.75838108]
[1736326669232,6.7143,197.84,197.71,9.81921778]
[1736326671122,7.7853,197.83,197.71,9.81921778]
[1736326671321,20.0,197.8,197.71,9.81921778]
[1736326671631,20.0,197.8,197.69,0.75849417]
[1736326671829,20.0,197.8,197.71,9.81921778]
[1736326672836,20.0,197.8,197.72,9.81921778]
[1736326674732,20.0,197.8,197.71,9.81921778]
[1736326675034,1.6254,197.78,197.69,9.81921778]
[1736326677237,1.6254,197.78,197.68,0.75848754]
[1736326677438,1.6254,197.78,197.69,9.81921778]
[1736326677631,1.6254,197.78,197.7,9.81921778]
[1736326679832,1.6254,197.78,197.68,0.75848754]
[1736326680037,1.6254,197.78,197.69,9.81921778]
[1736326680237,1.6254,197.78,197.7,9.81921778]
[1736326681014,1.6254,197.78,197.68,0.75848754]
[1736326681229,1.6254,197.78,197.7,9.81921778]
[1736326681430,1.6254,197.78,197.69,9.81921778]
[1736326681914,6.2654,197.77,197.69,9.81921778]
[1736326682920,6.2654,197.77,197.67,28.70234364]
[1736326683121,20.0,197.74,197.67,28.70234364]
[1736326683420,20.0,197.73,197.67,18.88312586]
[1736326683623,1.558,197.72,197.67,18.88312586]
[1736326684134,1.558,197.72,197.62,0.75865723]
[1736326684135,6.638,197.71,197.62,0.75865723]
[1736326684340,6.638,197.71,197.63,9.81921778]
[1736326684735,6.638,197.71,197.64,9.81921778]
[1736326686239,6.638,197.71,197.59,0.75875074]
[1736326686430,1.5873,197.67,197.58,9.81921778]
[1736326686635,1.5873,197.67,197.57,9.81921778]
[1736326686820,21.5873,197.67,197.55,5.0]
[1736326687026,21.5873,197.67,197.6,9.81921778]
[1736326687227,21.5873,197.67,197.56,0.75904845]
[1736326687430,21.5873,197.67,197.56,9.81921778]
[1736326687835,21.5873,197.67,197.54,0.75894019]
[1736326687836,6.6462,197.67,197.58,9.81921778]
[1736326689826,6.6462,197.67,197.57,9.81921778]
[1736326690325,8.71209721,197.67,197.56,9.81921778]
[1736326690525,8.71209721,197.67,197.58,9.81921778]
[1736326692252,8.71209721,197.67,197.57,9.81921778]
[1736326695179,8.71209721,197.67,197.56,9.81921778]
[1736326696768,6.6275,197.66,197.56,9.81921778]
[1736326699884,6.6275,197.66,197.54,9.81921778]
[1736326699885,20.0,197.63,197.54,9.81921778]
[1736326700055,20.0,197.61,197.52,28.72305258]
[1736326700477,20.0,197.61,197.53,9.81921778]
[1736326700672,20.0,197.61,197.54,9.81921778]
[1736326701590,20.0,197.63,197.56,9.81921778]
[1736326701886,20.0,197.63,197.57,9.81921778]
[1736326703286,20.0,197.63,197.58,10.5782844]
[1736326703587,20.0,197.63,197.59,9.81921778]
[1736326703962,20.0,197.63,197.57,9.81921778]
[1736326704469,20.0,197.63,197.56,9.81921778]
[1736326706555,20.0,197.63,197.57,9.81921778]
[1736326712164,6.6275,197.66,197.59,9.81921778]
[1736326713570,1.5873,197.67,197.59,9.81921778]
[1736326717193,1.5873,197.67,197.63,9.81921778]
[1736326717485,6.2777,197.71,197.63,9.81921778]
[1736326720470,6.2777,197.71,197.62,9.81921778]
[1736326721085,6.2777,197.71,197.63,10.57795855]
[1736326727693,20.0,197.71,197.63,10.57795855]
[1736326729380,20.0,197.71,197.63,0.75874077]
[1736326729580,20.0,197.71,197.62,0.75875528]
[1736326729779,20.0,197.71,197.63,9.81921778]
[1736326730087,20.0,197.71,197.62,10.57797306]
[1736326730494,20.0,197.71,197.64,9.81921778]
[1736326730799,20.0,197.71,197.63,10.57795422]
[1736326731470,20.0,197.71,197.63,0.75873644]
[1736326732578,6.2634,197.7,197.6,0.75875363]
[1736326732897,6.2634,197.7,197.61,9.81921778]
[1736326733096,6.2634,197.7,197.6,10.57797141]
[1736326733413,6.2634,197.7,197.59,9.81921778]
[1736326733575,6.2634,197.7,197.58,10.57806613]
[1736326734201,6.2634,197.7,197.59,23.776884]
[1736326735298,6.2634,197.7,197.6,0.75889629]
[1736326735500,6.2634,197.7,197.6,10.57811407]
[1736326737810,6.2634,197.7,197.59,34.35498024]
[1736326738382,20.0,197.67,197.57,0.75888901]
[1736326738597,20.0,197.67,197.57,10.57810679]
[1736326738806,20.0,197.67,197.58,9.81921778]
[1736326740120,20.0,197.67,197.59,9.81921778]
[1736326740907,6.2634,197.7,197.63,9.81921778]
[1736326741089,6.2634,197.7,197.64,9.81921778]
[1736326741800,1.6175,197.72,197.64,9.81921778]
[1736326741801,21.6175,197.72,197.64,9.81921778]
[1736326741988,21.6175,197.72,197.66,9.81921778]
[1736326742395,6.5125,197.75,197.68,9.81921778]
[1736326743713,6.5125,197.75,197.69,0.75852204]
[1736326743915,6.5125,197.75,197.68,10.57774988]
[1736326745291,6.5125,197.75,197.67,33.59610178]
[1736326747917,6.5125,197.75,197.68,0.75856416]
[1736326748928,6.5125,197.75,197.65,0.75856015]
[1736326749090,6.5125,197.75,197.64,9.81921778]
[1736326749496,20.0,197.72,197.63,0.75864948]
[1736326749730,20.0,197.72,197.62,9.81921778]
[1736326749901,20.0,197.72,197.61,10.57795622]
[1736326750327,20.0,197.72,197.62,23.776884]
[1736326751290,20.0,197.72,197.63,0.75875896]
[1736326751496,6.6926,197.74,197.63,10.57797674]
[1736326752127,20.0,197.71,197.63,10.57797674]
[1736326753124,20.0,197.71,197.63,0.75875896]
[1736326753736,20.0,197.71,197.6,10.57797269]
[1736326753930,7.9096,197.7,197.56,7.80843903]
[1736326754228,7.9096,197.7,197.58,9.81921778]
[1736326755640,7.9096,197.7,197.59,0.75888445]
[1736326756922,7.9096,197.7,197.58,23.776884]
[1736326757250,5.0584,197.69,197.57,10.57813515]
[1736326758049,20.0,197.66,197.55,10.57818135]
[1736326758545,20.0,197.67,197.51,14.37713903]
[1736326758714,20.0,197.67,197.53,9.81921778]
[1736326758715,21.5813,197.66,197.53,9.81921778]
[1736326758913,21.5813,197.66,197.54,23.776884]
[1736326759726,6.0983,197.65,197.54,23.776884]
[1736326760127,20.0,197.62,197.52,0.75908608]
[1736326760313,20.0,197.62,197.51,10.5783144]
[1736326760710,20.0,197.62,197.51,0.75909662]
[1736326760916,20.0,197.62,197.51,10.5783144]
[1736326761422,20.0,197.62,197.52,23.776884]
[1736326763119,20.0,197.62,197.52,33.59610178]
[1736326763933,20.0,197.62,197.53,9.81921778]
[1736326764247,20.0,197.62,197.54,9.81921778]
[1736326765043,20.0,197.62,197.53,10.5783483]
[1736326766834,20.0,197.62,197.55,9.81921778]
[1736326767031,6.0983,197.65,197.57,9.81921778]
[1736326767338,6.0983,197.65,197.59,9.81921778]
[1736326767838,1.5813,197.66,197.61,9.81921778]
[1736326768038,1.5813,197.66,197.62,0.75880363]
[1736326768222,1.5813,197.66,197.61,0.75880363]
[1736326769155,1.5813,197.66,197.58,0.75883543]